[Event "FIDE World Rapid Chess Championship 2021"]
[White "Muradli, Mahammad"]
[Black "Gareyev, Timur"]
[WhiteFideId "13409301"]
[BlackFideId "14200937"]
[WhiteElo "2285"]
[BlackElo "2578"]
[Result "0-1"]
[Round "12"]
[TimeControl "900+10"]
[Date "2021.12.28"]
[WhiteClock "0:00:15"]
[BlackClock "0:00:46"]

1. c4 {[%clk 0:15:06]}  d6 {[%clk 0:15:00]} 2. Nc3 {[%clk 0:15:17]}  g6 {[%clk 0:15:00]} 3. d4 {[%clk 0:15:17]}  Bg7 {[%clk 0:15:00]} 4. e4 {[%clk 0:15:17]}  Nd7 {[%clk 0:15:00]} 5. Be2 {[%clk 0:15:17]}  e5 {[%clk 0:15:00]} 6. Nf3 {[%clk 0:15:17]}  Nh6 {[%clk 0:15:00]} 7. O-O {[%clk 0:15:17]}  O-O {[%clk 0:15:00]} 8. d5 {[%clk 0:14:55]}  a5 {[%clk 0:15:34]} 9. Bg5 {[%clk 0:14:55]}  f6 {[%clk 0:15:34]} 10. Bh4 {[%clk 0:14:55]}  Nc5 {[%clk 0:15:34]} 11. Nd2 {[%clk 0:14:55]}  g5 {[%clk 0:13:01]} 12. Bg3 {[%clk 0:14:55]}  f5 {[%clk 0:13:01]} 13. exf5 {[%clk 0:14:55]}  Nxf5 {[%clk 0:13:01]} 14. Nde4 {[%clk 0:14:55]}  b6 {[%clk 0:13:01]} 15. Bg4 {[%clk 0:14:55]}  h6 {[%clk 0:13:09]} 16. h3 {[%clk 0:13:23]}  Bd7 {[%clk 0:13:09]} 17. b3 {[%clk 0:13:23]}  Qe8 {[%clk 0:13:09]} 18. Re1 {[%clk 0:13:23]}  Qf7 {[%clk 0:13:09]} 19. Rb1 {[%clk 0:12:57]}  Kh8 {[%clk 0:11:25]} 20. Kh2 {[%clk 0:12:57]}  Qe7 {[%clk 0:10:32]} 21. Rh1 {[%clk 0:12:23]}  Kg8 {[%clk 0:08:42]} 22. Qd2 {[%clk 0:10:29]}  Rae8 {[%clk 0:08:42]} 23. Rbe1 {[%clk 0:10:29]}  Qf7 {[%clk 0:08:42]} 24. Qd1 {[%clk 0:10:29]}  Rb8 {[%clk 0:08:42]} 25. Kg1 {[%clk 0:09:32]}  Qg6 {[%clk 0:07:59]} 26. Bh5 {[%clk 0:09:32]}  Qh7 {[%clk 0:06:44]} 27. h4 {[%clk 0:09:32]}  gxh4 {[%clk 0:06:52]} 28. Bxh4 {[%clk 0:05:27]}  Nd4 {[%clk 0:06:52]} 29. Bg3 {[%clk 0:05:35]}  Nf5 {[%clk 0:05:14]} 30. Nxc5 {[%clk 0:05:35]}  bxc5 {[%clk 0:05:14]} 31. Qg4 {[%clk 0:05:35]}  Nxg3 {[%clk 0:04:48]} 32. Qxg3 {[%clk 0:02:50]}  Qf5 {[%clk 0:04:48]} 33. Rh4 {[%clk 0:02:50]}  Qg5 {[%clk 0:04:48]} 34. Bg4 {[%clk 0:02:50]}  Rf4 {[%clk 0:04:48]} 35. Re4 {[%clk 0:02:44]}  Rd8 {[%clk 0:03:35]} 36. Bxd7 {[%clk 0:02:09]}  Rxd7 {[%clk 0:01:30]} 37. Qxg5 {[%clk 0:02:09]}  hxg5 {[%clk 0:01:30]} 38. Rh5 {[%clk 0:02:09]}  Bf6 {[%clk 0:01:30]} 39. Re2 {[%clk 0:02:09]}  Rd4 {[%clk 0:01:30]} 40. Ne4 {[%clk 0:01:32]}  Kg7 {[%clk 0:01:37]} 41. g4 {[%clk 0:01:32]}  Kg6 {[%clk 0:01:37]} 42. f3 {[%clk 0:01:32]}  Rd1+ {[%clk 0:01:37]} 43. Kf2 {[%clk 0:01:32]}  Bd8 {[%clk 0:01:37]} 44. Rh8 {[%clk 0:01:32]}  Kg7 {[%clk 0:01:37]} 45. Rh5 {[%clk 0:01:32]}  Kg6 {[%clk 0:01:37]} 46. Re1 {[%clk 0:01:32]}  Rxe1 {[%clk 0:01:37]} 47. Kxe1 {[%clk 0:01:32]}  Bf6 {[%clk 0:01:37]} 48. Kd2 {[%clk 0:01:32]}  Rd8 {[%clk 0:01:37]} 49. Ng3 {[%clk 0:01:32]}  a4 {[%clk 0:01:37]} 50. Nf5 {[%clk 0:00:24]}  axb3 {[%clk 0:01:19]} 51. axb3 {[%clk 0:00:24]}  Bg7 {[%clk 0:01:19]} 52. Ne7+ {[%clk 0:00:24]}  Kf7 {[%clk 0:01:19]} 53. Rh7 {[%clk 0:00:24]}  Rd7 {[%clk 0:01:19]} 54. Nf5 {[%clk 0:00:24]}  Kg6 {[%clk 0:01:19]} 55. Rh1 {[%clk 0:00:24]}  Rf7 {[%clk 0:01:19]} 56. Ke3 {[%clk 0:00:34]}  Rf8 {[%clk 0:00:20]} 57. Ke4 {[%clk 0:00:34]}  Rb8 {[%clk 0:00:20]} 58. Ne7+ {[%clk 0:00:34]}  Kf6 {[%clk 0:00:20]} 59. Rh7 {[%clk 0:00:34]}  Rxb3 {[%clk 0:00:20]} 60. Nf5 {[%clk 0:00:34]}  Bf8 {[%clk 0:00:20]} 61. Rxc7 {[%clk 0:00:34]}  Rc3 {[%clk 0:00:20]} 62. Rc8 {[%clk 0:00:34]}  Kf7 {[%clk 0:00:20]} 63. Ne3 {[%clk 0:00:34]}  Be7 {[%clk 0:00:20]} 64. Ra8 {[%clk 0:00:34]}  Kf6 {[%clk 0:00:20]} 65. Ra2 {[%clk 0:00:34]}  Bd8 {[%clk 0:00:35]} 66. Rc2 {[%clk 0:00:24]}  Ra3 {[%clk 0:00:35]} 67. Nf5 {[%clk 0:00:24]}  Be7 {[%clk 0:00:35]} 68. Rh2 {[%clk 0:00:24]}  Bf8 {[%clk 0:00:35]} 69. Rh8 {[%clk 0:00:24]}  Kf7 {[%clk 0:00:35]} 70. Rh7+ {[%clk 0:00:24]}  Ke8 {[%clk 0:00:35]} 71. Rh8 {[%clk 0:00:24]}  Kf7 {[%clk 0:00:35]} 72. Rh7+ {[%clk 0:00:24]}  Ke8 {[%clk 0:00:35]} 73. Rh5 {[%clk 0:00:24]}  Rc3 {[%clk 0:00:35]} 74. Ne3 {[%clk 0:00:24]}  Kf7 {[%clk 0:00:35]} 75. Rh2 {[%clk 0:00:24]}  Kf6 {[%clk 0:00:35]} 76. Rc2 {[%clk 0:00:24]}  Ra3 {[%clk 0:00:45]} 77. Nd1 {[%clk 0:00:29]}  Be7 {[%clk 0:00:45]} 78. Rc3 {[%clk 0:00:29]}  Ra2 {[%clk 0:00:45]} 79. Ke3 {[%clk 0:00:29]}  e4 {[%clk 0:00:45]} 80. Kxe4 {[%clk 0:00:29]}  Kg6 {[%clk 0:00:45]} 81. Ne3 {[%clk 0:00:29]}  Bf6 {[%clk 0:00:45]} 82. Rc2 {[%clk 0:00:29]}  Ra3 {[%clk 0:00:45]} 83. Nf5 {[%clk 0:00:29]}  Be5 {[%clk 0:00:45]} 84. Rc1 {[%clk 0:00:29]}  Bf4 {[%clk 0:00:45]} 85. Rh1 {[%clk 0:00:47]}  Kf7 {[%clk 0:00:38]} 86. Rh6 {[%clk 0:00:47]}  Ra6 {[%clk 0:00:38]} 87. Re6 {[%clk 0:00:47]}  Ra4 {[%clk 0:00:38]} 88. Nxd6+ {[%clk 0:00:47]}  Bxd6 {[%clk 0:00:38]} 89. Rxd6 {[%clk 0:00:47]}  Rxc4+ {[%clk 0:00:38]} 90. Ke5 {[%clk 0:00:47]}  Rf4 {[%clk 0:00:38]} 91. Rd7+ {[%clk 0:00:47]}  Ke8 {[%clk 0:00:38]} 92. Rg7 {[%clk 0:00:47]}  Rxf3 {[%clk 0:00:38]} 93. Kd6 {[%clk 0:00:47]}  c4 {[%clk 0:00:46]} 94. Kc7 {[%clk 0:00:15]}  Rf7+ {[%clk 0:00:46]} 95. Rxf7 {[%clk 0:00:15]}  Kxf7 {[%clk 0:00:46]} 96. d6 {[%clk 0:00:15]}  c3 {[%clk 0:00:46]} 97. d7 {[%clk 0:00:15]}  c2 {[%clk 0:00:46]} 98. d8=Q {[%clk 0:00:15]}  c1=Q+ {[%clk 0:00:46]} 99. Kb8 {[%clk 0:00:15]}  Qf4+ {[%clk 0:00:46]} 100. Kb7 {[%clk 0:00:15]}  Qe4+ {[%clk 0:00:46]} 101. Kc7 {[%clk 0:00:15]}  Qe7+ {[%clk 0:00:46]} 102. Qd7 {[%clk 0:00:15]}  Kf6 {[%clk 0:00:46]} 0-1


[Site "http://www.Chess.com"]

[Event "FIDE World Rapid Chess Championship 2021"]
[White "Dudin, Gleb"]
[Black "Halkias, Stelios"]
[WhiteFideId "34184934"]
[BlackFideId "4201809"]
[WhiteElo "2247"]
[BlackElo "2576"]
[Result "1-0"]
[Round "12"]
[TimeControl "900+10"]
[Date "2021.12.28"]
[WhiteClock "0:00:13"]
[BlackClock "0:00:16"]

1. d4 {[%clk 0:15:00]}  Nf6 {[%clk 0:15:00]} 2. c4 {[%clk 0:15:00]}  g6 {[%clk 0:15:00]} 3. Nc3 {[%clk 0:15:00]}  Bg7 {[%clk 0:15:00]} 4. e4 {[%clk 0:15:00]}  d6 {[%clk 0:15:00]} 5. Be2 {[%clk 0:15:00]}  O-O {[%clk 0:15:00]} 6. Be3 {[%clk 0:15:00]}  Nc6 {[%clk 0:15:00]} 7. d5 {[%clk 0:15:00]}  Ne5 {[%clk 0:15:00]} 8. Rc1 {[%clk 0:15:00]}  c6 {[%clk 0:11:33]} 9. Nf3 {[%clk 0:15:43]}  Nfg4 {[%clk 0:11:33]} 10. Bg5 {[%clk 0:15:43]}  h6 {[%clk 0:11:33]} 11. Bh4 {[%clk 0:15:43]}  Nxf3+ {[%clk 0:10:58]} 12. gxf3 {[%clk 0:14:30]}  Nf6 {[%clk 0:10:01]} 13. f4 {[%clk 0:14:30]}  cxd5 {[%clk 0:10:04]} 14. cxd5 {[%clk 0:10:34]}  b5 {[%clk 0:10:04]} 15. e5 {[%clk 0:10:34]}  Nd7 {[%clk 0:08:28]} 16. exd6 {[%clk 0:09:27]}  Bf6 {[%clk 0:08:28]} 17. dxe7 {[%clk 0:08:53]}  Qxe7 {[%clk 0:06:17]} 18. Bg3 {[%clk 0:08:53]}  h5 {[%clk 0:06:25]} 19. f5 {[%clk 0:06:09]}  h4 {[%clk 0:03:29]} 20. d6 {[%clk 0:06:09]}  Qe8 {[%clk 0:03:29]} 21. Bf4 {[%clk 0:06:09]}  Bxc3+ {[%clk 0:03:15]} 22. Rxc3 {[%clk 0:04:14]}  Qe4 {[%clk 0:03:15]} 23. Rg1 {[%clk 0:04:21]}  Qxf4 {[%clk 0:02:29]} 24. fxg6 {[%clk 0:00:59]}  Ne5 {[%clk 0:02:29]} 25. Qd5 {[%clk 0:00:59]}  Be6 {[%clk 0:02:29]} 26. gxf7+ {[%clk 0:00:59]}  Kxf7 {[%clk 0:02:29]} 27. Qb7+ {[%clk 0:00:59]}  Bd7 {[%clk 0:02:29]} 28. Rg4 {[%clk 0:00:15]}  Qf5 {[%clk 0:00:40]} 29. Rxh4 {[%clk 0:00:15]}  Rae8 {[%clk 0:00:40]} 30. Re3 {[%clk 0:00:15]}  Qb1+ {[%clk 0:00:40]} 31. Bd1 {[%clk 0:00:15]}  Nd3+ {[%clk 0:00:16]} 32. Kd2 {[%clk 0:00:13]}  Qxb2+ {[%clk 0:00:16]} 33. Kxd3 {[%clk 0:00:13]}  Qb1+ {[%clk 0:00:16]} 34. Kd2 {[%clk 0:00:13]}  Qxa2+ {[%clk 0:00:16]} 35. Bc2 {[%clk 0:00:13]}  Qa5+ {[%clk 0:00:16]} 36. Ke2 {[%clk 0:00:13]}  Rxe3+ {[%clk 0:00:16]} 37. fxe3 {[%clk 0:00:13]}  Ke8 {[%clk 0:00:16]} 38. Qe4+ {[%clk 0:00:13]} 1-0


[Site "http://www.Chess.com"]

[Event "FIDE World Rapid Chess Championship 2021"]
[White "Vakhidov, Jakhongir"]
[Black "Suleymanli, Aydin"]
[WhiteFideId "14201801"]
[BlackFideId "13413937"]
[WhiteElo "2566"]
[BlackElo "2202"]
[Result "1-0"]
[Round "12"]
[TimeControl "900+10"]
[Date "2021.12.28"]
[WhiteClock "0:06:53"]
[BlackClock "0:00:49"]

1. c4 {[%clk 0:15:00]}  e5 {[%clk 0:15:00]} 2. Nc3 {[%clk 0:15:00]}  Nc6 {[%clk 0:15:00]} 3. Nf3 {[%clk 0:15:00]}  Nf6 {[%clk 0:13:55]} 4. e4 {[%clk 0:15:50]}  Bb4 {[%clk 0:13:55]} 5. d3 {[%clk 0:15:50]}  Bxc3+ {[%clk 0:13:55]} 6. bxc3 {[%clk 0:15:50]}  d6 {[%clk 0:13:55]} 7. g3 {[%clk 0:15:50]}  Ne7 {[%clk 0:13:55]} 8. Bg2 {[%clk 0:15:50]}  Ng6 {[%clk 0:13:55]} 9. O-O {[%clk 0:15:50]}  O-O {[%clk 0:13:55]} 10. Ne1 {[%clk 0:15:50]}  Ne8 {[%clk 0:10:17]} 11. Nc2 {[%clk 0:16:02]}  f5 {[%clk 0:10:17]} 12. exf5 {[%clk 0:16:02]}  Rxf5 {[%clk 0:10:17]} 13. d4 {[%clk 0:16:02]}  Rb8 {[%clk 0:10:17]} 14. h4 {[%clk 0:16:02]}  Be6 {[%clk 0:06:45]} 15. Ne3 {[%clk 0:16:06]}  Rf7 {[%clk 0:06:45]} 16. h5 {[%clk 0:15:18]}  Ne7 {[%clk 0:05:21]} 17. h6 {[%clk 0:15:00]}  g6 {[%clk 0:04:22]} 18. Qe2 {[%clk 0:15:00]}  exd4 {[%clk 0:04:22]} 19. cxd4 {[%clk 0:12:51]}  d5 {[%clk 0:02:39]} 20. Re1 {[%clk 0:12:51]}  Nf6 {[%clk 0:02:47]} 21. Ba3 {[%clk 0:10:22]}  dxc4 {[%clk 0:02:47]} 22. Nc2 {[%clk 0:10:24]}  Bf5 {[%clk 0:00:46]} 23. Bxe7 {[%clk 0:10:24]}  Rxe7 {[%clk 0:00:46]} 24. Qxe7 {[%clk 0:10:24]}  Qxe7 {[%clk 0:00:46]} 25. Rxe7 {[%clk 0:10:24]}  Bxc2 {[%clk 0:00:46]} 26. Rxc7 {[%clk 0:10:24]}  b5 {[%clk 0:00:46]} 27. Re1 {[%clk 0:10:24]}  Bd3 {[%clk 0:00:49]} 28. Re6 {[%clk 0:08:44]}  Nh5 {[%clk 0:00:49]} 29. Bd5 {[%clk 0:08:44]}  Kh8 {[%clk 0:00:49]} 30. Rce7 {[%clk 0:06:53]} 1-0


[Site "http://www.Chess.com"]

[Event "FIDE World Rapid Chess Championship 2021"]
[White "Socko, Bartosz"]
[Black "Gumularz, Szymon"]
[WhiteFideId "1107038"]
[BlackFideId "1188062"]
[WhiteElo "2562"]
[BlackElo "2452"]
[Result "1-0"]
[Round "12"]
[TimeControl "900+10"]
[Date "2021.12.28"]
[WhiteClock "0:07:54"]
[BlackClock "0:07:34"]

1. d4 {[%clk 0:15:00]}  d6 {[%clk 0:15:00]} 2. e4 {[%clk 0:15:18]}  Nf6 {[%clk 0:15:00]} 3. Nc3 {[%clk 0:15:18]}  g6 {[%clk 0:15:00]} 4. h3 {[%clk 0:15:18]}  Bg7 {[%clk 0:15:00]} 5. Be3 {[%clk 0:15:18]}  a6 {[%clk 0:15:00]} 6. a4 {[%clk 0:15:18]}  Nc6 {[%clk 0:15:00]} 7. Nge2 {[%clk 0:15:18]}  e5 {[%clk 0:15:00]} 8. d5 {[%clk 0:15:41]}  Ne7 {[%clk 0:15:19]} 9. g4 {[%clk 0:15:41]}  c6 {[%clk 0:15:19]} 10. Bg2 {[%clk 0:15:41]}  O-O {[%clk 0:15:19]} 11. O-O {[%clk 0:14:27]}  cxd5 {[%clk 0:13:14]} 12. exd5 {[%clk 0:14:27]}  Ne8 {[%clk 0:13:14]} 13. Ng3 {[%clk 0:14:27]}  f5 {[%clk 0:13:14]} 14. gxf5 {[%clk 0:14:27]}  Nxf5 {[%clk 0:13:14]} 15. Nce4 {[%clk 0:14:27]}  h6 {[%clk 0:13:14]} 16. Qd2 {[%clk 0:13:33]}  Kh7 {[%clk 0:13:11]} 17. Kh2 {[%clk 0:13:33]}  Bd7 {[%clk 0:13:11]} 18. c4 {[%clk 0:12:10]}  Nh4 {[%clk 0:11:49]} 19. f4 {[%clk 0:12:10]}  Nxg2 {[%clk 0:11:49]} 20. Qxg2 {[%clk 0:12:10]}  exf4 {[%clk 0:11:49]} 21. Bxf4 {[%clk 0:12:10]}  Qh4 {[%clk 0:11:49]} 22. Bd2 {[%clk 0:12:11]}  Nf6 {[%clk 0:10:53]} 23. Nxf6+ {[%clk 0:09:46]}  Bxf6 {[%clk 0:10:04]} 24. Rf4 {[%clk 0:09:46]}  Qg5 {[%clk 0:10:04]} 25. Raf1 {[%clk 0:09:46]}  Rae8 {[%clk 0:09:48]} 26. h4 {[%clk 0:08:53]}  Qe5 {[%clk 0:07:34]} 27. Bc3 {[%clk 0:07:54]}  Qe3 {[%clk 0:07:34]} 28. Rxf6 {[%clk 0:07:54]}  Rxf6 {[%clk 0:07:34]} 29. Rxf6 {[%clk 0:07:54]} 1-0


[Site "http://www.Chess.com"]

[Event "FIDE World Rapid Chess Championship 2021"]
[White "Piorun, Kacper"]
[Black "Ivic, Velimir"]
[WhiteFideId "1130420"]
[BlackFideId "950122"]
[WhiteElo "2547"]
[BlackElo "2357"]
[Result "1-0"]
[Round "12"]
[TimeControl "900+10"]
[Date "2021.12.28"]
[WhiteClock "0:00:33"]
[BlackClock "0:00:42"]

1. d4 {[%clk 0:15:00]}  d5 {[%clk 0:15:18]} 2. c4 {[%clk 0:15:19]}  e6 {[%clk 0:15:18]} 3. Nf3 {[%clk 0:15:19]}  Nf6 {[%clk 0:15:18]} 4. g3 {[%clk 0:15:19]}  Bb4+ {[%clk 0:15:18]} 5. Bd2 {[%clk 0:15:19]}  a5 {[%clk 0:15:18]} 6. Bg2 {[%clk 0:15:19]}  O-O {[%clk 0:15:18]} 7. Qc2 {[%clk 0:15:19]}  c5 {[%clk 0:15:18]} 8. cxd5 {[%clk 0:14:23]}  cxd4 {[%clk 0:16:34]} 9. Nxd4 {[%clk 0:14:23]}  Qb6 {[%clk 0:16:34]} 10. e3 {[%clk 0:14:23]}  exd5 {[%clk 0:16:34]} 11. O-O {[%clk 0:14:23]}  Nc6 {[%clk 0:16:34]} 12. Nxc6 {[%clk 0:14:23]}  bxc6 {[%clk 0:16:34]} 13. Rc1 {[%clk 0:14:23]}  Rb8 {[%clk 0:16:34]} 14. Bxb4 {[%clk 0:14:23]}  Qxb4 {[%clk 0:16:34]} 15. b3 {[%clk 0:14:23]}  Bd7 {[%clk 0:16:34]} 16. Nc3 {[%clk 0:14:23]}  h5 {[%clk 0:16:34]} 17. Na4 {[%clk 0:14:23]}  Qd6 {[%clk 0:16:18]} 18. Nc5 {[%clk 0:13:35]}  Bc8 {[%clk 0:16:18]} 19. Nd3 {[%clk 0:13:20]}  Bd7 {[%clk 0:14:18]} 20. Qc5 {[%clk 0:11:47]}  Qc7 {[%clk 0:14:18]} 21. Qd4 {[%clk 0:11:51]}  Rfe8 {[%clk 0:12:33]} 22. Rc2 {[%clk 0:11:51]}  Qd6 {[%clk 0:12:28]} 23. Rac1 {[%clk 0:09:20]}  Rbc8 {[%clk 0:12:28]} 24. Rc5 {[%clk 0:09:22]}  Ra8 {[%clk 0:08:08]} 25. Qa4 {[%clk 0:08:26]}  Ne4 {[%clk 0:06:33]} 26. Rxa5 {[%clk 0:05:56]}  Rxa5 {[%clk 0:06:33]} 27. Qxa5 {[%clk 0:05:56]}  d4 {[%clk 0:04:12]} 28. Bxe4 {[%clk 0:05:33]}  Rxe4 {[%clk 0:04:12]} 29. Nc5 {[%clk 0:05:33]}  Re8 {[%clk 0:04:12]} 30. Qd2 {[%clk 0:04:49]}  Bg4 {[%clk 0:02:18]} 31. Qxd4 {[%clk 0:04:49]}  Qe7 {[%clk 0:02:18]} 32. Kg2 {[%clk 0:04:49]}  Rd8 {[%clk 0:02:18]} 33. Qc3 {[%clk 0:04:19]}  h4 {[%clk 0:01:58]} 34. h3 {[%clk 0:04:19]}  Bc8 {[%clk 0:01:58]} 35. g4 {[%clk 0:04:19]}  f5 {[%clk 0:01:58]} 36. Qc4+ {[%clk 0:04:19]}  Kh8 {[%clk 0:01:58]} 37. gxf5 {[%clk 0:03:01]}  Bxf5 {[%clk 0:01:02]} 38. Qe2 {[%clk 0:03:01]}  Rd5 {[%clk 0:01:11]} 39. b4 {[%clk 0:01:30]}  Bc8 {[%clk 0:01:11]} 40. Rd1 {[%clk 0:01:30]}  Rg5+ {[%clk 0:01:11]} 41. Kh2 {[%clk 0:01:30]}  Kh7 {[%clk 0:01:11]} 42. Qc4 {[%clk 0:01:30]}  Rf5 {[%clk 0:01:11]} 43. Qe4 {[%clk 0:01:30]}  Qf6 {[%clk 0:01:11]} 44. f4 {[%clk 0:01:30]}  Qb2+ {[%clk 0:00:17]} 45. Qg2 {[%clk 0:00:14]}  Qc3 {[%clk 0:00:17]} 46. Rg1 {[%clk 0:00:14]}  Rf7 {[%clk 0:00:17]} 47. Ne4 {[%clk 0:00:14]}  Qxe3 {[%clk 0:00:17]} 48. Ng5+ {[%clk 0:00:14]}  Kg8 {[%clk 0:00:17]} 49. Nxf7 {[%clk 0:00:14]}  Qxf4+ {[%clk 0:00:17]} 50. Kh1 {[%clk 0:00:14]}  Qxf7 {[%clk 0:00:17]} 51. Rf1 {[%clk 0:00:14]}  Qe7 {[%clk 0:00:17]} 52. a4 {[%clk 0:00:14]}  Bb7 {[%clk 0:00:17]} 53. Qa2+ {[%clk 0:00:14]}  Kh8 {[%clk 0:00:17]} 54. Qf7 {[%clk 0:00:14]}  c5+ {[%clk 0:00:17]} 55. Kh2 {[%clk 0:00:14]}  Qe5+ {[%clk 0:00:42]} 56. Qf4 {[%clk 0:00:33]}  Qe2+ {[%clk 0:00:42]} 57. Rf2 {[%clk 0:00:33]}  Qd1 {[%clk 0:00:42]} 58. Qb8+ {[%clk 0:00:33]}  Kh7 {[%clk 0:00:42]} 59. Qxb7 {[%clk 0:00:33]}  Qd6+ {[%clk 0:00:42]} 60. Kh1 {[%clk 0:00:33]}  Qd1+ {[%clk 0:00:42]} 61. Kg2 {[%clk 0:00:33]} 1-0


[Site "http://www.Chess.com"]

[Event "FIDE World Rapid Chess Championship 2021"]
[White "Shoker, Samy"]
[Black "Wojtaszek, Radoslaw"]
[WhiteFideId "627143"]
[BlackFideId "1118358"]
[WhiteElo "2550"]
[BlackElo "2743"]
[Result "0-1"]
[Round "12"]
[TimeControl "900+10"]
[Date "2021.12.28"]
[WhiteClock "0:06:20"]
[BlackClock "0:12:02"]

1. Nf3 {[%clk 0:15:00]}  d5 {[%clk 0:15:18]} 2. g3 {[%clk 0:15:18]}  c6 {[%clk 0:15:18]} 3. Bg2 {[%clk 0:15:18]}  Bg4 {[%clk 0:15:18]} 4. c4 {[%clk 0:15:18]}  e6 {[%clk 0:15:18]} 5. Qb3 {[%clk 0:15:18]}  Qb6 {[%clk 0:15:04]} 6. Qc2 {[%clk 0:15:05]}  Nd7 {[%clk 0:15:04]} 7. cxd5 {[%clk 0:15:05]}  cxd5 {[%clk 0:15:04]} 8. O-O {[%clk 0:15:05]}  Ngf6 {[%clk 0:15:04]} 9. d3 {[%clk 0:15:05]}  Be7 {[%clk 0:15:04]} 10. Nc3 {[%clk 0:15:05]}  O-O {[%clk 0:15:04]} 11. Be3 {[%clk 0:14:33]}  Qa6 {[%clk 0:13:20]} 12. h3 {[%clk 0:14:33]}  Bxf3 {[%clk 0:13:29]} 13. Bxf3 {[%clk 0:12:01]}  Rfc8 {[%clk 0:13:29]} 14. Qb3 {[%clk 0:12:01]}  Ne5 {[%clk 0:13:29]} 15. Bg2 {[%clk 0:12:01]}  Nc6 {[%clk 0:13:29]} 16. Nb5 {[%clk 0:12:01]}  Nd7 {[%clk 0:13:45]} 17. Rfc1 {[%clk 0:09:46]}  Na5 {[%clk 0:13:45]} 18. Qa4 {[%clk 0:09:34]}  Nb6 {[%clk 0:11:54]} 19. Bxb6 {[%clk 0:09:34]}  Qxb6 {[%clk 0:11:54]} 20. Rxc8+ {[%clk 0:09:34]}  Rxc8 {[%clk 0:11:54]} 21. Nxa7 {[%clk 0:09:34]}  Qxa7 {[%clk 0:12:21]} 22. Qd7 {[%clk 0:06:47]}  Qc5 {[%clk 0:12:21]} 23. b4 {[%clk 0:06:47]}  Qc3 {[%clk 0:12:21]} 24. Rb1 {[%clk 0:06:20]}  Qc2 {[%clk 0:12:02]} 25. Rb2 {[%clk 0:06:20]}  Qc1+ {[%clk 0:12:02]} 26. Bf1 {[%clk 0:06:20]}  Rc7 {[%clk 0:12:02]} 0-1


[Site "http://www.Chess.com"]

[Event "FIDE World Rapid Chess Championship 2021"]
[White "Mamedov, Rauf"]
[Black "Samunenkov, Ihor"]
[WhiteFideId "13401653"]
[BlackFideId "14187086"]
[WhiteElo "2690"]
[BlackElo "2259"]
[Result "1-0"]
[Round "12"]
[TimeControl "900+10"]
[Date "2021.12.28"]
[WhiteClock "0:01:37"]
[BlackClock "0:00:36"]

1. e4 {[%clk 0:15:00]}  c5 {[%clk 0:15:18]} 2. Nf3 {[%clk 0:15:28]}  g6 {[%clk 0:15:18]} 3. d4 {[%clk 0:15:28]}  cxd4 {[%clk 0:15:18]} 4. Nxd4 {[%clk 0:15:28]}  Nc6 {[%clk 0:15:18]} 5. Nc3 {[%clk 0:15:28]}  Bg7 {[%clk 0:15:18]} 6. Be3 {[%clk 0:15:28]}  Nf6 {[%clk 0:15:18]} 7. Bc4 {[%clk 0:15:28]}  O-O {[%clk 0:15:18]} 8. Bb3 {[%clk 0:15:28]}  Re8 {[%clk 0:15:18]} 9. O-O {[%clk 0:15:28]}  d6 {[%clk 0:15:18]} 10. h3 {[%clk 0:15:28]}  Na5 {[%clk 0:15:18]} 11. Qd2 {[%clk 0:15:48]}  a6 {[%clk 0:15:45]} 12. Bh6 {[%clk 0:15:48]}  b5 {[%clk 0:15:45]} 13. Bxg7 {[%clk 0:15:48]}  Kxg7 {[%clk 0:15:45]} 14. Rfe1 {[%clk 0:15:48]}  Bb7 {[%clk 0:13:52]} 15. Qg5 {[%clk 0:15:50]}  e6 {[%clk 0:12:54]} 16. a3 {[%clk 0:13:25]}  Nxb3 {[%clk 0:10:37]} 17. Nxb3 {[%clk 0:13:25]}  Rc8 {[%clk 0:09:50]} 18. Rad1 {[%clk 0:11:35]}  Qe7 {[%clk 0:09:50]} 19. Rd3 {[%clk 0:11:35]}  h6 {[%clk 0:08:56]} 20. Qe3 {[%clk 0:10:31]}  Red8 {[%clk 0:08:56]} 21. Na5 {[%clk 0:10:23]}  Qc7 {[%clk 0:06:26]} 22. Nxb7 {[%clk 0:10:23]}  Qxb7 {[%clk 0:06:26]} 23. Red1 {[%clk 0:10:23]}  Qc7 {[%clk 0:05:13]} 24. Qd4 {[%clk 0:08:59]}  e5 {[%clk 0:05:13]} 25. Qb4 {[%clk 0:07:59]}  Ne8 {[%clk 0:03:31]} 26. R1d2 {[%clk 0:07:59]}  Qc4 {[%clk 0:03:31]} 27. Qa5 {[%clk 0:07:24]}  Nf6 {[%clk 0:02:07]} 28. Qxa6 {[%clk 0:07:24]}  b4 {[%clk 0:02:07]} 29. Qxc4 {[%clk 0:07:24]}  Rxc4 {[%clk 0:02:07]} 30. axb4 {[%clk 0:07:24]}  Rxb4 {[%clk 0:02:07]} 31. b3 {[%clk 0:06:27]}  Nxe4 {[%clk 0:01:19]} 32. Nxe4 {[%clk 0:06:27]}  Rxe4 {[%clk 0:01:19]} 33. Kf1 {[%clk 0:06:27]}  Ra8 {[%clk 0:01:19]} 34. Rxd6 {[%clk 0:06:27]}  Ra1+ {[%clk 0:01:19]} 35. Rd1 {[%clk 0:06:27]}  Ra2 {[%clk 0:01:19]} 36. Rc6 {[%clk 0:06:27]}  Rb2 {[%clk 0:01:19]} 37. g3 {[%clk 0:06:27]}  h5 {[%clk 0:01:18]} 38. h4 {[%clk 0:05:42]}  Ra2 {[%clk 0:01:18]} 39. Re1 {[%clk 0:05:42]}  Rd4 {[%clk 0:01:18]} 40. Rxe5 {[%clk 0:04:30]}  Rd2 {[%clk 0:00:23]} 41. Re2 {[%clk 0:04:30]}  Ra1+ {[%clk 0:00:23]} 42. Re1 {[%clk 0:04:30]}  Ra5 {[%clk 0:00:23]} 43. Kg1 {[%clk 0:04:30]}  Rf5 {[%clk 0:00:23]} 44. Rf1 {[%clk 0:04:30]}  Re5 {[%clk 0:00:23]} 45. b4 {[%clk 0:04:30]}  Ree2 {[%clk 0:00:23]} 46. b5 {[%clk 0:04:30]}  Rxc2 {[%clk 0:00:23]} 47. Rxc2 {[%clk 0:04:30]}  Rxc2 {[%clk 0:00:23]} 48. Rb1 {[%clk 0:04:30]}  Rc7 {[%clk 0:00:23]} 49. Kg2 {[%clk 0:04:30]}  Kf6 {[%clk 0:00:23]} 50. b6 {[%clk 0:04:30]}  Rb7 {[%clk 0:00:23]} 51. Kf3 {[%clk 0:04:30]}  Ke5 {[%clk 0:00:36]} 52. Ke3 {[%clk 0:01:37]}  Kd5 {[%clk 0:00:36]} 53. Kf4 {[%clk 0:01:37]}  f6 {[%clk 0:00:36]} 54. f3 {[%clk 0:01:37]}  Kc5 {[%clk 0:00:36]} 55. g4 {[%clk 0:01:37]}  hxg4 {[%clk 0:00:36]} 56. fxg4 {[%clk 0:01:37]}  Kd5 {[%clk 0:00:36]} 1-0


[Site "http://www.Chess.com"]